Cogmind - Beta 13 @@@ ROGUE MODE // 2024.04.06 @ 15:24:02 Player: TheLargestBoi Result: Self-destructed Performance ------------- Evolutions (2) 1000 Regions Visited (4) 800 Robots Destroyed (48) 240 Value Destroyed (632) 632 Prototype IDs (3) 60 Alien Tech Used (0) 0 Bonus (0) 0 TOTAL SCORE: 2732 Bonus ------- None Cogmind --------- Core Integrity 291/550 Matter 280/300 Energy 94/100 System Corruption 0% Temperature Cool (18) Movement Walking (180) Ox1 Location -8/Materials Parts ------- > --- POWER (1) -------- (None) > --- PROPULSION (3) --- VSS Leg > --- UTILITY (4) ------ Medium Storage Unit Signal Interpreter > --- WEAPON (3) ------- Axe Ripper > --- INVENTORY (10) --- Carbon-fiber Leg VSS Leg Trap Scanner Improved Sensor Array Improved Sensor Array Hardlight Generator Improved Medium Laser Improved Medium Laser Pulse Rifle Axe Peak State ------------ > --- POWER ------------ Light Nuclear Core > --- PROPULSION ------- VSS Leg VSS Leg VSS Leg > --- UTILITY ---------- Medium Storage Unit Improved Sensor Array Signal Interpreter Hacking Suite > --- WEAPON ----------- Axe Axe Ripper > --- INVENTORY -------- Carbon-fiber Leg VSS Leg Trap Scanner Improved Sensor Array Improved Terrain Scanner Hardlight Generator Improved Medium Laser Improved Medium Laser Pulse Rifle Mini Grenade Launcher [Rating: 32] Favorites ----------- Power Improved Ion Engine Engine Improved Ion Engine Power Core Light Nuclear Core Propulsion VSS Leg Leg VSS Leg Utility Medium Storage Unit Device Improved Terrain Scanner Storage Medium Storage Unit Processor Signal Interpreter Hackware Hacking Suite Protection Light Armor Plating Weapon Improved Medium Laser Energy Gun Improved Medium Laser Energy Cannon Particle Cannon Ballistic Gun Light Assault Rifle Launcher Mini Grenade Launcher Slashing Weapon Ripper Build | -11 -10 -9 -9 -8 ------- Run | Yrd Mat Mat Min Mat Slots Evolved 4 | . . 2 . 2 Power . | . . . . . Propulsion 1 | . . 1 . . Utility 2 | . . 1 . 1 Weapon 1 | . . . . 1 Parts Attached 62 | 8 14 20 13 7 Power 6 | 1 1 2 1 1 Engine 5 | 1 1 2 1 . Core 1 | . . . . 1 Reactor . | . . . . . Propulsion 7 | 2 1 4 . . Treads . | . . . . . Leg 7 | 2 1 4 . . Wheel . | . . . . . Hover . | . . . . . Flight . | . . . . . Utility 22 | 2 3 7 8 2 Device 16 | 1 1 5 8 1 Storage 2 | 1 1 . . . Processor 1 | . 1 . . . Hackware 1 | . . . . 1 Protection 2 | . . 2 . . Artifact . | . . . . . Weapon 27 | 3 9 7 4 4 Energy Gun 5 | 2 . 1 1 1 Energy Cannon 7 | . 5 2 . . Ballistic Gun 1 | 1 . . . . Ballistic Cannon . | . . . . . Launcher 8 | . 4 1 2 1 Special Weapon . | . . . . . Impact Weapon . | . . . . . Slashing Weapon 6 | . . 3 1 2 Piercing Weapon . | . . . . . Special Melee Weapon . | . . . . . Unidentified Prototypes 1 | . . 1 . . Parts Lost 5 | . . . 1 4 Power 1 | . . . 1 . Propulsion 2 | . . . . 2 Utility 2 | . . . . 2 Weapon . | . . . . . Highest Loss Streak 4 | . . . 1 4 To Critical Strikes . | . . . . . Average Slot Usage (%) 99 | . 100 99 99 94 Engine 11 | . 14 11 10 7 Leg 31 | . 28 32 33 26 Device 8 | . 4 7 11 8 Storage 11 | . 14 11 11 9 Processor 10 | . 9 11 11 9 Energy Gun 6 | . . 2 10 5 Energy Cannon 6 | . 27 7 . . Launcher 1 | . . . . 5 Slashing Weapon 9 | . . 11 11 15 Naked Turns . | . . . . . Heaviest Build 27 | 11 22 27 24 27 Greatest Support 36 | 20 20 36 24 36 Greatest Overweight (x) 1 | . 1 . . 1 Average Overweight (x) . | . . . . . Largest Inventory Capacity 10 | 8 10 10 10 10 Average Capacity 9 | 7 9 10 10 10 Most Carried 10 | 3 10 10 10 10 Average Carried 9 | 1 8 9 9 9 Final Capacity 10 | 8 10 10 10 10 Final Carried 10 | 3 10 10 9 10 Class Distribution -------------------- 100% | Mutant Dominant Class ---------------- Mutant | -10/Materials Mutant | -9/Materials Mutant | -9/Mines Mutant | -8/Materials Resources | -11 -10 -9 -9 -8 ----------- Run | Yrd Mat Mat Min Mat Matter Collected 1007 | 288 141 262 276 40 Remotely . | . . . . . Salvage Created 1322 | 56 312 631 307 16 Parts 100 | 8 25 41 24 2 Haulers Intercepted 3 | . 2 1 . . Recyclers Shooed 1 | 1 . . . . Parts Field Recycled . | . . . . . Retrieved Matter . | . . . . . Parts Self-Destructed . | . . . . . Prevented . | . . . . . Kills | -11 -10 -9 -9 -8 ------- Run | Yrd Mat Mat Min Mat Combat Hostiles Destroyed 24 | . 7 10 7 . Melee 4 | . . 4 . . Cannons 3 | . 1 2 . . AOE 17 | . 6 4 7 . Classes Destroyed 10 | 1 7 2 . . Worker 5 | . 1 1 2 1 Builder 1 | . . 1 . . Tunneler 4 | 3 . . 1 . Hauler 3 | . 2 1 . . Recycler 6 | . 1 2 3 . Operator 1 | . 1 . . . Watcher 4 | . 2 2 . . Swarmer 17 | . 6 4 7 . Grunt 3 | . 1 2 . . Sentry 4 | . . 4 . . Best Kill Streak 7 | 1 7 5 4 1 Combat Bots Only 4 | . 3 4 4 . Max Kills in Single Turn 6 | 1 6 2 3 1 Gunslinging . | . . . . . Exploded 3 | . 3 2 3 . Melee 1 | . . 1 . . Uniques/NPCs Destroyed . | . . . . . Combat | -11 -10 -9 -9 -8 -------- Run | Yrd Mat Mat Min Mat Hostile Shots Fired 106 | . 17 46 14 29 Missed 33 | . 6 18 3 6 Damage Taken 1164 | . 102 361 199 502 Core 395 | . 10 98 28 259 Absorbed by Shields . | . . . . . Core Remaining (%) 88 | 100 96 . 68 . Volleys Fired 31 | 8 11 6 5 1 Largest 2 | 2 2 2 1 1 Hottest 136 | 60 136 136 30 30 Shots Fired 53 | 16 22 7 7 1 Gun 18 | 16 . . 2 . Cannon 23 | . 20 3 . . Launcher 12 | . 2 4 5 1 Special . | . . . . . Kinetic 8 | 8 . . . . Thermal 33 | 8 20 3 2 . Explosive 12 | . 2 4 5 1 Electromagnetic . | . . . . . Robot Hit Streak 4 | 3 4 4 2 1 Robot Miss Streak 3 | 1 2 3 2 . Penetration Max . | . . . . . Secondary Targets . | . . . . . Shots Hit Robots 68 | 9 12 25 11 11 Core Hits 53 | 4 14 18 13 4 Critical Kills . | . . . . . Critical Parts Destroyed . | . . . . . Critical Strikes 3 | . . 1 . 2 Sever 3 | . . 1 . 2 Melee Attacks 48 | . . 25 9 14 Impact . | . . . . . Slashing 48 | . . 25 9 14 Piercing . | . . . . . Sneak Attacks 20 | . . 8 9 3 Combat Hostiles . | . . . . . Follow-up Attacks 3 | . . 2 . 1 Damage Inflicted 3812 | 91 645 1462 984 630 Guns 91 | 91 . . . . Cannons 268 | . 205 63 . . Explosions 1300 | . 434 322 328 216 Melee 2141 | . . 1071 656 414 Ramming 12 | . 6 6 . . Kinetic 48 | 48 . . . . Thermal 311 | 43 205 63 . . Explosive 1300 | . 434 322 328 216 Electromagnetic . | . . . . . Impact . | . . . . . Slashing 2141 | . . 1071 656 414 Piercing . | . . . . . Highest Corruption 2 | . . 2 2 . Average Corruption 2 | . . 2 2 . Corruption Purged . | . . . . . Corruption Blocked . | . . . . . Effects 45 | . . 8 37 . Message Errors 13 | . . 3 10 . Matter Fused 18 | . . 3 15 . Heat Flow Errors 3 | . . 1 2 . Energy Discharges 5 | . . . 5 . Data Loss (minor) 3 | . . 1 2 . Misfires 2 | . . . 2 . Alerts 1 | . . . 1 . Overload Shots . | . . . . . Overflow Damage 372 | . . 106 145 121 Projectiles . | . . . . . Explosions 38 | . . 10 20 8 Melee 334 | . . 96 125 113 Knockbacks . | . . . . . Impact . | . . . . . Kinetic . | . . . . . Secondary . | . . . . . Self-Inflicted Damage 205 | . . 56 112 37 Shots 6 | . . 2 3 1 Rammed . | . . . . . Targets Rammed 3 | . 2 1 . . Kicked 3 | . 2 1 . . Crushed . | . . . . . Highest Temperature 156 | 20 156 102 88 14 Average Temperature 38 | 15 49 34 33 5 Received Heat Transfer 279 | . 36 72 . 171 Siege Activations . | . . . . . Robots Corrupted . | . . . . . Combat Hostiles . | . . . . . Parts Fried . | . . . . . Impact Corruptions . | . . . . . Robots Melted . | . . . . . Combat Hostiles . | . . . . . Parts Melted . | . . . . . Heat Transferred 581 | 100 370 111 . . Parts Sabotaged . | . . . . . Parts Stolen . | . . . . . Parts Stripped . | . . . . . Power Chain Reactions . | . . . . . Alert | -11 -10 -9 -9 -8 ------- Run | Yrd Mat Mat Min Mat Peak Influence 284 | 15 157 284 134 60 Initial 35 | . 9 2 28 35 Average 43 | 3 75 86 23 29 Maximum Alert Level 1 | . . 1 . . Low Security (%) 98 | 100 100 91 100 100 Level 1 1 | . . 8 . . Level 2 . | . . . . . Level 3 . | . . . . . Level 4 . | . . . . . Level 5 . | . . . . . High Security . | . . . . . Max Security . | . . . . . Squads Dispatched 4 | . 2 . . 2 Investigation 3 | . 1 . . 2 Extermination . | . . . . . Reinforcement 1 | . 1 . . . Assault . | . . . . . Garrison . | . . . . . Intercept . | . . . . . Searches Triggered . | . . . . . Construction Impeded . | . . . . . Haulers Reinforced . | . . . . . Active Scanning Responses . | . . . . . Cargo Convoy Interrupts . | . . . . . Stealth | -11 -10 -9 -9 -8 --------- Run | Yrd Mat Mat Min Mat Distress Signals 2 | . 1 1 . . Communications Jammed . | . . . . . Distress Signals . | . . . . . Times Spotted 51 | . 17 17 10 7 Peak Tracking Total 6 | . 5 4 3 6 Tactical Retreats 4 | . . 3 1 . Traps | -11 -10 -9 -9 -8 ------- Run | Yrd Mat Mat Min Mat Traps Triggered 2 | . 1 1 . . Indirectly . | . . . . . Trap Hack Attempts . | . . . . . Triggered . | . . . . . Disarmed . | . . . . . Reprogrammed . | . . . . . Reused . | . . . . . Traps Extracted . | . . . . . Installed . | . . . . . Triggered . | . . . . . Machines | -11 -10 -9 -9 -8 ---------- Run | Yrd Mat Mat Min Mat Machines Disabled 2 | . 1 . . 1 Max in Single Turn 1 | . 1 . . 1 Machines Repaired . | . . . . . Machines Dismantled . | . . . . . Machines Sabotaged . | . . . . . Overloaded Fab Kills . | . . . . . Hacking | -11 -10 -9 -9 -8 --------- Run | Yrd Mat Mat Min Mat Machines Accessed 11 | . 3 4 . 4 Terminals 8 | . 2 3 . 3 Fabricators . | . . . . . Repair Stations 2 | . 1 1 . . Recycling Units . | . . . . . Scanalyzers 1 | . . . . 1 Garrison Access . | . . . . . Total Hacks 40 | . 7 11 . 22 Successful 21 | . 2 7 . 12 Failed 19 | . 5 4 . 10 Catastrophic 2 | . 2 . . . Database Lockouts . | . . . . . Manual 25 | . 3 4 . 18 Terminals 35 | . 6 10 . 19 Fabricators . | . . . . . Repair Stations 2 | . 1 1 . . Recycling Units . | . . . . . Scanalyzers 3 | . . . . 3 Garrison Access . | . . . . . Terminal Hacks 10 | . . 5 . 5 Record 1 | . . . . 1 Prototype ID Bank 1 | . . 1 . . Terminal Index 1 | . . . . 1 Alert Level 1 | . . 1 . . Unreport Threat 1 | . . 1 . . Locate Traps 1 | . . 1 . . Patrol Status 1 | . . . . 1 Recall Investigation 1 | . . . . 1 Zone Layout 2 | . . 1 . 1 Fabricator Hacks . | . . . . . Repair Station Hacks . | . . . . . Recycling Unit Hacks . | . . . . . Scanalyzer 3 | . . . . 3 Insert Component 1 | . . . . 1 Analyze 2 | . . . . 2 Garrison Access Hacks . | . . . . . Unauthorized Hacks 8 | . 2 2 . 4 Terminals 7 | . 1 2 . 4 Track 1 | . . . . 1 Botnet 4 | . 1 1 . 2 Operators 2 | . . 1 . 1 Fabricators . | . . . . . Repair Stations 1 | . 1 . . . Mechanics 1 | . 1 . . . Recycling Units . | . . . . . Scanalyzers . | . . . . . Garrison Access . | . . . . . Data Cores Recovered . | . . . . . Used . | . . . . . Hacking Detections 9 | . 2 3 . 4 Full Trace Events 3 | . 1 . . 2 Feedback Events . | . . . . . Feedback Blocked . | . . . . . Robot Schematics Acquired . | . . . . . Robots Built . | . . . . . Authchips . | . . . . . Time . | . . . . . Total Robot Build Rating . | . . . . . Part Schematics Acquired 1 | . . . . 1 Parts Built . | . . . . . Authchips . | . . . . . Time . | . . . . . Total Part Build Rating . | . . . . . Parts Repaired . | . . . . . Time . | . . . . . Parts Recycled . | . . . . . Recycled Matter . | . . . . . Retrieved Matter . | . . . . . Retrieved Components . | . . . . . Parts Scanalyzed 1 | . . . . 1 Part Schematics Acquired 1 | . . . . 1 Parts Damaged . | . . . . . Bothacking | -11 -10 -9 -9 -8 ------------ Run | Yrd Mat Mat Min Mat Used RIF Installer . | . . . . . Robots Hacked . | . . . . . Non-combat . | . . . . . Combat . | . . . . . Robot Hacks Applied . | . . . . . Relay Couplers Released . | . . . . . Fabnet Peak Effective % . | . . . . . Robots Rewired . | . . . . . Allies Hacked . | . . . . . Hacks Repelled . | . . . . . Allies | -11 -10 -9 -9 -8 -------- Run | Yrd Mat Mat Min Mat Total Allies . | . . . . . Largest Group . | . . . . . Highest-Rated Group . | . . . . . Highest-Rated Ally . | . . . . . Total Orders . | . . . . . Ally Attacks . | . . . . . Total Damage . | . . . . . Kills . | . . . . . Allies Corrupted . | . . . . . Allies Melted . | . . . . . Intel | -11 -10 -9 -9 -8 ------- Run | Yrd Mat Mat Min Mat Robot Analysis Total . | . . . . . Derelict Logs Recovered 2 | . . . 2 . Drone Launches . | . . . . . Drone Recoveries . | . . . . . Exploration | -11 -10 -9 -9 -8 ------------- Run | Yrd Mat Mat Min Mat Turns Passed 5543 | 153 993 937 2640 820 Spaces Moved 2510 | 98 469 739 890 314 Core 4 | 4 . . . . Treads . | . . . . . Legs 2506 | 94 469 739 890 314 Wheels . | . . . . . Hover . | . . . . . Flight . | . . . . . Fastest Speed 50 | 50 120 90 90 90 Average Speed 109 | 117 178 96 90 91 Slowest Speed 190 | 120 190 120 90 180 Overloaded Moves . | . . . . . Propulsion Burnouts . | . . . . . Robots Hopped . | . . . . . Cave-ins Triggered . | . . . . . Exploration Rate (%) 46 | 5 63 35 98 32 Regions Visited 4 Branch Regions 1 Pre-discovered Areas 1 | . . . 1 . Known Exits Taken 3 | . 1 1 1 . Unknown Exits Taken 1 | 1 . . . . Scrap Searched 1 | . . . 1 . Spaces Dug 3 | . . . . 3 Terrain Destroyed 115 | . 23 26 53 13 Melee 3 | . . . . 3 Projectile . | . . . . . AOE 112 | . 23 26 53 10 Terrain Rammed . | . . . . . Walls Destroyed . | . . . . . Machines Disabled . | . . . . . Actions | -11 -10 -9 -9 -8 --------- Run | Yrd Mat Mat Min Mat Total 5170 | 118 601 923 2704 824 Wait 2456 | 2 83 102 1783 486 Move 2506 | 97 468 738 889 314 Hop . | . . . . . Pick Up 36 | 3 14 15 2 2 Fast Attach 13 | 7 . 3 1 2 Attach 4 | . . 2 1 1 Detach . | . . . . . Swap 45 | 1 14 15 11 4 Drop 33 | . 9 20 3 1 Fire 31 | 8 11 6 5 1 Melee 43 | . . 21 9 13 Ram . | . . . . . Kick 3 | . 2 1 . . Crush . | . . . . . Escape Stasis . | . . . . . Rewire . | . . . . . Trap . | . . . . . Miscellaneous . | . . . . . Route ------- -11/Scrapyard -10/Materials (discovered 4 exits: *Mat x2 / *Min x2) -9/Materials (discovered 2 exits: Mat / *Min) -9/Mines (discovered 2 exits: *Mat x2) -8/Materials (discovered 1 exit: *Fac) History --------- Turn | Location | Event 56 | -11/Scrapyard | Discovered new exit (range 14) 154 | -11/Scrapyard | Entered Materials 306 | -10/Materials | Build established: Mutant 381 | -10/Materials | Discovered new exit (range 11) 386 | -10/Materials | Discovered new exit (range 16) 503 | -10/Materials | Identified exit to Mines 553 | -10/Materials | Identified exit to Materials 678 | -10/Materials | Discovered exit to Mines (range 15) 1007 | -10/Materials | Discovered exit to Materials (range 12) 1147 | -10/Materials | Entered another Materials area 1147 | -9/Materials | Evolved 2 slots: Propulsion x1, Utility x1 1293 | -9/Materials | Discovered new exit (range 5) 1298 | -9/Materials | Identified exit to Mines 1825 | -9/Materials | Discovered new exit (range 14) 2084 | -9/Materials | Entered Mines 2098 | -9/Mines | Met a Derelict bent on vengeance 2101 | -9/Mines | Learned location of Zion (-6) 2199 | -9/Mines | Learned location of 1 exit from Materials 2224 | -9/Mines | Assembled infested the area 2229 | -9/Mines | Assisted by a Guerilla fighting off Assembled 2229 | -9/Mines | Found a hidden stash of uninstalled traps 2250 | -9/Mines | Discovered new exit (range 16) 2295 | -9/Mines | Discovered new exit (range 6) 2299 | -9/Mines | Identified exit to Materials 2880 | -9/Mines | A weapon hastily lodged in a ceiling crevice suddenly fell to the ground 4724 | -9/Mines | Entered Materials 4724 | -8/Materials | Evolved 2 slots: Utility x1, Weapon x1 4725 | -8/Materials | Identified exit to Factory 5544 | -8/Materials | Self-destructed Last Messages --------------- 05321_ Destroyed Backup Power I. 05360_ Sneak attack on K-01 Serf. 05360_ K-01 Serf destroyed. 05361_ Extracted 30 matter. 05424_ Dropped Imp. Ion Engine. 05427_ Acquired Lgt. Nuclear Core. 05451_ R-06 Scavenger collects Wheel. 05456_ Sneak attack on T-07 Excavator. 05456_ Destroyed Mining Laser. 05526_ L-31 Rogue Imp. Ion Engine severed. 05529_ VSS Leg destroyed. 05531_ L-31 Rogue Katana severed. 05531_ Axe follow-up attack on L-31 Rogue. 05535_ Imp. Terrain Scanner destroyed. 05537_ VSS Leg destroyed. 05537_ Critical hit (Burn: +37). 05538_ Lgt. Nuclear Core severed. 05540_ Destroyed Imp. Heat Sink. 05540_ Mni. Grenade Launcher severed. 05542_ Hacking Suite destroyed. Map ----- +----------------------------------------------------+ | | | | | | | | | | | ####?????????????????????????????????????????????? | | #?########????????????????????????????????????? | | #?# #????????????????????????????????????? | | #?# """ #????????????????????????????????????? | | #?# "Y" !#????????????????????????????????????? | | #?# #????????????##Y?????????????????????? | | ???#! #???????????? ##??????????????????? | | ??????? ????????????? ]= #???????????????????? | | #########+###########??"" ] #???????????????????? | | # """ #?#?????????????????? | | + / #???????????????????? | | # /#???#???????????????? | | ################### #?? #???????????????????? | | #??????###### #???" #???##??????????????? | | #??????# #!#???" = [#???????????????????? | | #??????# !#%#####+ ####?????????????????? | | #??????# ] # # ^ #??????##??? ??????? | | / #??????# + g #??????#???????????? | | ? #??????# # ### g g #?????#???????"????? | | ?######??????# # ## rlg #??????????????????? | | ?????????????# # #?# *@ #??#???????????????? | | ?????????????# *# #?## ] #??????????????????? | | ?????????????##+###+#### ######?????????? ??"????? | | ??????????????# ##???????????????? ???????? | | ?#????????????# = """ #?????????????????????????? | | ?# ###/#### """ #?????????????????????????? | | ?# # """ ##???????????????#????????? | | ?# + #?????????????????????????? | | ?# # """ #??#?????#??? ????????????? | | ?# ######## """ ##????????????????????????? | | ?##???????????# ] """ #???##?????#??????????????? | | ??#???????????# #?????????????????????????? | | ??#???????????##########???#?????#???????????????? | | ??#????????????????????????????????? ????????????? | | ??#???????????????????????#??????????????????????? | | ??#???????????????????????????#???#??????????????? | | ### ???????????????????????#??#?????????????????? | | ???????????????????????????????????????????? | | ???????????????????????????????????????????? | | ???????????????????????????????????????????? | | ####?????????????????????????????????????????????? | | ?????????????????????????????????????????????????? | | ?????????????????????????????????????????????????? | | ###??????????????????????????????????????????????? | | ??????????????????????????????????????????????? | +----------------------------------------------------+ Best States ------------- Heat Dissipation 38 Energy Generation 14 Energy Capacity 265 Matter Stores 300 Matter Capacity 300 Sight Range 16 Robot Scan Range 15 Terrain Scan Range 16 Terrain Scan Density 10 Armor Coverage 150 Evasion (%) 57 Offensive Hacking 10 Item Schematics ----------------- VSS Leg | -8/Materials | Scanalyzed Robot Schematics ------------------ None Fabricated ------------ Nothing Alien Tech Used ----------------- None Achievements -------------- None Challenges ------------ None Game ------ Seed VortexCloakingMinigun Manual? 0 Play Time 00:34:27 Cumulative 30.9 hours Start 2024.04.02 @ 10:48:36 End 2024.04.06 @ 15:24:02 Sessions 5 Manual Loads 0 Difficulty Rogue Special Mode None Game No. 68 Rogue 68 Adventurer 0 Explorer 0 Win Type - Total 1 Types 1/0/0/0/0/0/0/0/0 Lore% 19 Gallery% 31 Achievement% 32 Wizard Run 0 Options --------- Layout 0 ASCII 0 Keyboard 0 Movement Numpad Keybinds 0 Fullscreen 1 Font 18/SmallcapsGlow Map View 76x50 Zoom Use 0% Tactical HUD 1 Map Filters NONE Filters NONE Steam 1 RUN: 58db3e02-aac1-4bfc-adcb-f5d175c3ce20